bitfinex-derivatives/quotes_BNBF0:USTF0_20251027
["timestamp","ask_amount","ask_price","bid_price","bid_amount"]
[1761558183027,1.2931272,1159.2,1157.4,0.53868031]
[1761558183227,1.2931272,1159.2,1157.5,0.53868031]
[1761558183434,1.2931272,1159.4,1157.6,0.53903886]
[1761558183635,1.2931272,1159.8,1157.7,0.53886025]
[1761558183838,1.2931272,1159.8,1156.8,0.63674687]
[1761558184034,1.2931272,1159.8,1156.9,0.53884366]
[1761558184233,1.2931272,1159.8,1157.0,0.53884366]
[1761558184536,1.2931272,1159.8,1157.1,0.53884366]
[1761558184732,1.2931272,1159.8,1157.2,0.53884366]
[1761558185033,1.2931272,1159.8,1157.3,0.53884366]
[1761558185232,1.2931272,1159.8,1157.4,0.53884366]
[1761558185432,1.2931272,1159.8,1157.5,0.53884366]
[1761558185632,1.2931272,1159.8,1157.6,0.53884366]
[1761558185832,1.2931272,1159.8,1157.7,0.53884366]
[1761558186039,1.2931272,1159.8,1156.9,0.63674687]
[1761558186238,1.2931272,1159.8,1157.0,0.53909838]
[1761558186537,1.2931272,1159.8,1157.1,0.53909838]
[1761558186737,1.2931272,1159.8,1157.2,0.53909838]
[1761558186934,1.2931272,1159.8,1157.3,0.53909838]
[1761558187134,1.2931272,1159.8,1157.4,0.53909838]
[1761558187335,1.2931272,1159.8,1157.5,0.53909838]
[1761558187539,1.2931272,1159.7,1157.6,0.53909838]
[1761558187734,1.2931272,1159.7,1157.7,0.53909838]
[1761558187936,1.2931272,1159.6,1156.9,0.63674687]
[1761558188140,1.2931272,1158.8,1157.2,0.63674687]
[1761558188337,1.2931272,1158.7,1157.3,0.53913137]
[1761558188639,1.2931272,1158.7,1157.4,0.53913137]
[1761558188843,1.2931272,1158.6,1157.1,0.63674687]
[1761558189038,1.2931272,1158.6,1157.2,0.53936077]
[1761558189237,1.2931272,1158.6,1157.3,0.53936077]
[1761558189442,1.2931272,1158.6,1157.4,0.53936077]
[1761558189638,1.2931272,1158.6,1157.1,0.63674687]
[1761558189843,1.2931272,1158.6,1157.2,0.53922178]
[1761558190044,1.2931272,1158.6,1157.3,0.53922178]
[1761558190343,1.2931272,1158.6,1157.4,0.53922178]
[1761558190541,1.2931272,1158.6,1157.1,0.63674687]
[1761558190838,1.2931272,1158.6,1157.2,0.53930431]
[1761558191042,1.2931272,1158.6,1157.3,0.53930431]
[1761558191338,1.2931272,1158.6,1157.4,0.53930431]
[1761558191544,1.2931272,1158.6,1157.1,0.63674687]
[1761558191741,1.2931272,1158.6,1157.2,0.53956276]
[1761558191942,1.2931272,1158.6,1157.3,0.53956276]
[1761558192143,1.2931272,1158.6,1157.4,0.53956276]
[1761558192342,1.2931272,1158.6,1157.1,0.63674687]
[1761558192547,1.2931272,1158.6,1157.2,0.53960399]
[1761558192747,1.2931272,1158.6,1157.3,0.53960399]
[1761558192946,1.2931272,1158.6,1157.4,0.53960399]
[1761558193144,1.2931272,1158.6,1157.1,0.63674687]
[1761558193343,1.2931272,1158.6,1157.2,0.53962677]
[1761558193543,1.2931272,1158.6,1157.3,0.53962677]
[1761558193749,1.2931272,1158.6,1157.4,0.53962677]
[1761558194043,1.2931272,1158.8,1157.5,0.53962677]
[1761558194246,1.2931272,1158.8,1157.0,0.63674687]
[1761558194546,1.2931272,1158.8,1157.1,0.53968664]
[1761558194845,1.2931272,1158.9,1157.2,0.53968664]
[1761558195046,1.2931272,1158.9,1157.3,0.53968664]
[1761558195245,1.2931272,1158.9,1157.4,0.53968664]
[1761558195446,1.2931272,1158.9,1157.5,0.53968664]
[1761558195749,1.2931272,1158.9,1157.0,0.63674687]
[1761558195944,1.2931272,1158.9,1157.1,0.5397902]
[1761558196150,1.2931272,1158.9,1157.2,0.5397902]
[1761558196450,1.2931272,1158.9,1157.3,0.5397902]
[1761558196746,1.2931272,1158.9,1157.4,0.5397902]
[1761558196945,1.2931272,1158.9,1157.5,0.5397902]
[1761558197247,1.2931272,1158.9,1157.0,0.63674687]
[1761558197450,1.2931272,1158.9,1157.1,0.53981023]
[1761558197650,1.2931272,1159.0,1157.2,0.53981023]
[1761558197848,1.2931272,1159.0,1157.3,0.53981023]
[1761558198052,1.2931272,1159.0,1157.4,0.53981023]
[1761558198253,1.2931272,1159.1,1157.5,0.53981023]
[1761558198551,1.2931272,1159.1,1157.6,0.53981023]
[1761558198754,1.2931272,1159.1,1157.1,0.63674687]
[1761558198948,1.2931272,1159.1,1157.2,0.53985784]
[1761558199147,1.2931272,1159.1,1157.3,0.53985784]
[1761558199447,1.2931272,1159.1,1157.4,0.53985784]
[1761558199650,1.2931272,1159.1,1157.5,0.53985784]
[1761558199850,1.2931272,1159.1,1157.6,0.53985784]
[1761558200048,1.2931272,1159.1,1157.1,0.63674687]
[1761558200250,1.2931272,1159.1,1157.2,0.53984355]
[1761558200448,1.2931272,1159.1,1157.3,0.53984355]
[1761558200647,1.2931272,1159.1,1157.4,0.53984355]
[1761558200948,1.2931272,1159.1,1157.5,0.53984355]
[1761558201148,1.2931272,1159.1,1157.6,0.53984355]
[1761558201353,1.2931272,1159.1,1157.1,0.63674687]
[1761558201550,1.2931272,1159.1,1157.2,0.5399636]
[1761558201755,1.2931272,1159.1,1157.3,0.5399636]
[1761558201951,1.2931272,1159.1,1157.4,0.5399636]
[1761558202249,1.2931272,1159.1,1157.5,0.5399636]
[1761558202448,1.2931272,1159.1,1157.6,0.5399636]
[1761558202653,1.2931272,1159.1,1157.1,0.63674687]
[1761558202850,1.2931272,1159.1,1157.2,0.53983199]
[1761558203050,1.2931272,1159.1,1157.3,0.53983199]
[1761558203251,1.2931272,1159.1,1157.4,0.53983199]
[1761558203455,1.2931272,1159.1,1157.5,0.53983199]
[1761558203653,1.2931272,1159.2,1157.6,0.53983199]
[1761558203856,1.2931272,1159.2,1157.7,0.53983199]
[1761558204154,1.2931272,1159.2,1157.2,0.63674687]
[1761558204355,1.2931272,1159.2,1157.3,0.53984247]
[1761558204553,1.2931272,1159.2,1157.4,0.53984247]
[1761558204852,1.2931272,1159.3,1157.5,0.53984247]
[1761558205054,1.2931272,1159.0,1157.6,0.53984247]
[1761558205259,1.2931272,1159.0,1157.7,0.53984247]
[1761558205558,1.2931272,1158.8,1157.3,0.63674687]
[1761558205755,1.2931272,1158.7,1157.4,0.54000503]
[1761558205957,1.2931272,1158.9,1157.5,0.54000503]
[1761558206158,1.2931272,1158.9,1157.0,0.63674687]
[1761558206361,1.2931272,1158.9,1157.1,0.54044986]
[1761558206556,1.2931272,1158.8,1157.2,0.54044986]
[1761558206757,1.2931272,1158.6,1157.3,0.54044986]
[1761558206961,1.2931272,1158.6,1157.4,0.54044986]
[1761558207162,1.2931272,1158.6,1157.0,0.63674687]
[1761558207355,1.2931272,1158.6,1157.1,0.53929262]
[1761558207660,1.2931272,1158.6,1157.2,0.53929262]
[1761558207857,1.2931272,1158.6,1157.3,0.53929262]
[1761558208056,1.2931272,1158.5,1157.4,0.53929262]
[1761558208262,1.2931272,1158.5,1157.1,0.63674687]
[1761558208462,1.2931272,1158.5,1157.2,0.53926977]
[1761558208661,1.2931272,1158.6,1157.3,0.53926977]
[1761558208861,1.2931272,1158.7,1157.4,0.53926977]
[1761558209061,1.2931272,1158.7,1157.5,0.53926977]
[1761558209259,1.2931272,1158.7,1157.2,0.63674687]
[1761558209460,1.2931272,1158.6,1157.3,0.53925935]
[1761558209658,1.2931272,1158.6,1157.4,0.53925935]
[1761558209960,1.2931272,1158.6,1157.5,0.53925935]
[1761558210159,1.2931272,1158.6,1157.2,0.63674687]
[1761558210461,1.2931272,1158.6,1157.3,0.53935265]
[1761558210660,1.2931272,1158.6,1157.4,0.53935265]
[1761558210962,1.2931272,1158.6,1157.5,0.53935265]
[1761558211160,1.2931272,1158.6,1157.2,0.63674687]
[1761558211359,1.2931272,1158.6,1157.3,0.53926433]
[1761558211662,1.2931272,1158.6,1157.4,0.53926433]
[1761558211864,1.2931272,1158.6,1157.5,0.53926433]
[1761558212057,1.2931272,1158.6,1157.2,0.63674687]
[1761558212263,1.2931272,1158.7,1157.3,0.53910681]
[1761558212461,1.2931272,1158.7,1157.4,0.53910681]
[1761558212663,1.2931272,1158.7,1157.5,0.53910681]
[1761558212864,1.2931272,1158.7,1157.6,0.53910681]
[1761558213064,1.2931272,1158.7,1157.2,0.63674687]
[1761558213365,1.2931272,1158.7,1157.3,0.53877414]
[1761558213662,1.2931272,1158.6,1157.4,0.53877414]
[1761558213864,1.2931272,1158.6,1157.5,0.53877414]
[1761558214064,1.2931272,1158.6,1157.1,0.63674687]
[1761558214065,1.2931272,1158.8,1157.1,0.63674687]
[1761558214361,1.2931272,1158.8,1157.2,0.53881646]
[1761558214660,1.2931272,1158.8,1157.3,0.53881646]
[1761558214960,1.2931272,1158.9,1157.4,0.53881646]
[1761558215164,1.2931272,1159.0,1157.5,0.53881646]
[1761558215365,1.2931272,1159.0,1157.6,0.53881646]
[1761558215565,1.2931272,1159.0,1157.1,0.63674687]
[1761558215767,1.2931272,1159.0,1157.2,0.53895032]
[1761558215965,1.2931272,1159.0,1157.3,0.53895032]
[1761558216266,1.2931272,1159.0,1157.4,0.53895032]
[1761558216466,1.2931272,1159.0,1157.5,0.53895032]
[1761558216662,1.2931272,1159.0,1157.6,0.53895032]
[1761558216863,1.2931272,1159.0,1157.7,0.53895032]
[1761558217067,1.2931272,1159.0,1157.1,0.63674687]
[1761558217261,1.2931272,1159.0,1157.2,0.53892223]
[1761558217463,1.2931272,1159.0,1157.3,0.53892223]
[1761558217666,1.2931272,1159.0,1157.4,0.53892223]
[1761558217961,1.2931272,1159.0,1157.5,0.53892223]
[1761558218167,1.2931272,1159.0,1157.6,0.53892223]
[1761558218363,1.2931272,1159.0,1157.7,0.53892223]
[1761558218663,1.2931272,1159.0,1157.2,0.63674687]
[1761558218966,1.2931272,1159.0,1157.3,0.53912756]
[1761558219163,1.2931272,1159.0,1157.4,0.53912756]
[1761558219371,1.2931272,1159.0,1157.5,0.53912756]
[1761558219668,1.2931272,1159.0,1157.6,0.53912756]
[1761558219964,1.2931272,1158.7,1157.2,0.63674687]
[1761558220168,1.2931272,1158.7,1157.3,0.53917802]
[1761558220468,1.2931272,1158.7,1157.4,0.53917802]
[1761558220668,1.2931272,1158.7,1157.5,0.53917802]
[1761558220868,1.2931272,1158.7,1157.6,0.53917802]
[1761558221168,1.2931272,1158.7,1157.2,0.63674687]
[1761558221366,1.2931272,1158.7,1157.3,0.53884258]
[1761558221565,1.2931272,1158.7,1157.4,0.53884258]
[1761558221770,1.2931272,1158.7,1157.5,0.53884258]
[1761558221964,1.2931272,1158.7,1157.6,0.53884258]
[1761558222168,1.2931272,1158.8,1157.2,0.63674687]
[1761558222370,1.2931272,1158.8,1157.3,0.53884287]
[1761558222667,1.2931272,1158.6,1157.4,0.53884287]
[1761558222866,1.2931272,1158.6,1157.5,0.53884287]
[1761558223064,1.2931272,1158.6,1157.6,0.53884287]
[1761558223268,1.2931272,1158.6,1157.2,0.63674687]
[1761558223466,1.2931272,1158.6,1157.3,0.53885924]
[1761558223668,1.2931272,1158.6,1157.4,0.53885924]
[1761558223866,1.2931272,1158.6,1157.5,0.53885924]
[1761558224069,1.2931272,1158.6,1157.6,0.53885924]
[1761558224273,1.2931272,1158.6,1157.3,0.63674687]
[1761558224467,1.2931272,1158.6,1157.4,0.53886221]
[1761558224669,1.2931272,1158.6,1157.5,0.53886221]
[1761558224867,1.2931272,1158.8,1157.6,0.53886221]
[1761558225065,1.2931272,1158.8,1157.7,0.53886221]
[1761558225366,1.2931272,1158.8,1157.2,0.63674687]
[1761558225564,1.2931272,1158.8,1156.7,1.2873919]
[1761558225565,1.2931272,1158.8,1157.3,0.53914243]
[1761558225768,1.2931272,1158.4,1157.4,0.53914243]
[1761558225969,1.2931272,1158.4,1157.1,0.63674687]
[1761558226167,1.2931272,1158.4,1157.2,0.53939545]
[1761558226367,1.2931272,1158.4,1157.3,0.53939545]
[1761558226566,1.2931272,1158.7,1157.4,0.53939545]
[1761558226769,1.2931272,1158.7,1157.5,0.53939545]
[1761558226968,1.2931272,1158.7,1157.0,0.63674687]
[1761558227168,1.2931272,1158.7,1157.1,0.53935068]
[1761558227367,1.2931272,1158.7,1157.2,0.53935068]
[1761558227570,1.2931272,1158.7,1157.3,0.53935068]
[1761558227770,1.2931272,1158.7,1157.4,0.53935068]
[1761558227968,1.2931272,1158.7,1157.5,0.53935068]
[1761558228167,1.2931272,1158.7,1157.0,0.63674687]
[1761558228372,1.2931272,1158.7,1157.1,0.53936237]
[1761558228567,1.2931272,1158.7,1157.2,0.53936237]
[1761558228769,1.2931272,1158.7,1157.3,0.53936237]
[1761558228969,1.2931272,1158.7,1157.4,0.53936237]
[1761558229168,1.2931272,1158.7,1157.5,0.53936237]
[1761558229369,1.2931272,1158.7,1157.0,0.63674687]
[1761558229570,1.2931272,1158.7,1157.1,0.53932847]
[1761558229867,1.2931272,1158.8,1157.2,0.53932847]
[1761558230068,1.2931272,1158.8,1157.3,0.53932847]
[1761558230272,1.2931272,1158.8,1157.4,0.53932847]
[1761558230470,1.2931272,1158.8,1157.5,0.53932847]
[1761558230669,1.2931272,1158.8,1157.0,0.63674687]
[1761558230872,1.2931272,1158.8,1157.1,0.53932748]
[1761558231072,1.2931272,1158.8,1157.2,0.53932748]
[1761558231270,1.2931272,1158.8,1157.3,0.53932748]
[1761558231469,1.2931272,1158.8,1157.4,0.53932748]
[1761558231772,1.2931272,1158.8,1157.5,0.53932748]
[1761558231972,1.2931272,1158.8,1157.0,0.63674687]
[1761558232167,1.2931272,1158.8,1157.1,0.53890986]
[1761558232368,1.2931272,1158.8,1157.2,0.53890986]
[1761558232569,1.2931272,1158.8,1157.3,0.53890986]
[1761558232773,1.2931272,1158.8,1157.4,0.53890986]
[1761558232971,1.2931272,1158.8,1157.5,0.53890986]
[1761558233175,1.2931272,1158.8,1157.0,0.63674687]
[1761558233471,1.2931272,1158.8,1157.1,0.5388655]
[1761558233675,1.2931272,1158.8,1157.2,0.5388655]
[1761558233874,1.2931272,1158.8,1157.3,0.5388655]
[1761558234069,1.2931272,1158.8,1157.4,0.5388655]
[1761558234277,1.2931272,1158.9,1157.5,0.5388655]
[1761558234575,1.2931272,1158.9,1157.6,0.5388655]
[1761558234870,1.2931272,1158.9,1157.1,0.63674687]
[1761558235076,1.2931272,1158.8,1157.2,1.17544937]
[1761558235276,1.2931272,1158.8,1157.3,0.5387025]
[1761558235476,1.2931272,1158.8,1157.4,0.5387025]
[1761558235677,1.2931272,1158.8,1157.5,0.5387025]
[1761558235972,1.2931272,1158.8,1157.6,0.5387025]
[1761558236176,1.2931272,1158.8,1157.2,0.63674687]
[1761558236373,1.2931272,1158.8,1157.3,0.53871433]
[1761558236675,1.2931272,1158.8,1157.4,0.53871433]
[1761558236873,1.2931272,1158.8,1157.5,0.53871433]
[1761558237073,1.2931272,1158.8,1157.6,0.53871433]
[1761558237272,1.2931272,1158.8,1157.2,0.63674687]
[1761558237472,1.2931272,1158.8,1157.3,0.53874168]
[1761558237676,1.2931272,1158.8,1157.4,0.53874168]
[1761558237873,1.2931272,1158.8,1157.5,0.53874168]
[1761558238176,1.2931272,1158.8,1157.6,0.53874168]
[1761558238376,1.2931272,1158.8,1157.2,0.63674687]
[1761558238577,1.2931272,1158.8,1157.3,0.53872604]
[1761558238777,1.2931272,1158.7,1157.4,0.53872604]
[1761558239076,1.2931272,1158.6,1157.5,0.53872604]
[1761558239270,1.2931272,1158.7,1157.6,0.53872604]
[1761558239473,1.2931272,1158.7,1157.2,0.63674687]
[1761558239673,1.2931272,1158.7,1157.3,0.53864402]
[1761558239972,1.2931272,1158.7,1157.4,0.53864402]
[1761558240172,1.2931272,1158.7,1157.5,0.53864402]
[1761558240376,1.2931272,1158.7,1157.0,0.63674687]
[1761558240576,1.2931272,1158.7,1157.1,0.53859144]
[1761558240773,1.2931272,1158.7,1157.2,0.53859144]
[1761558240973,1.2931272,1158.7,1157.3,0.53859144]
[1761558241176,1.2931272,1158.7,1157.4,0.53859144]
[1761558241375,1.2931272,1158.7,1157.5,0.53859144]
[1761558241574,1.2931272,1158.7,1157.0,0.63674687]
[1761558241780,1.2931272,1158.7,1157.1,0.53806112]
[1761558241979,1.2931272,1158.7,1157.2,0.53806112]
[1761558242278,1.2931272,1158.7,1157.3,0.53806112]
[1761558242476,1.2931272,1158.7,1157.4,0.53806112]
[1761558242680,1.2931272,1158.6,1157.5,0.53806112]
[1761558242880,1.2931272,1158.6,1157.1,0.63674687]
[1761558243179,1.2931272,1158.6,1157.2,0.53795249]
[1761558243373,1.2931272,1158.6,1157.3,0.53795249]
[1761558243579,1.2931272,1158.6,1157.4,0.53795249]
[1761558243778,1.2931272,1158.6,1157.5,0.53795249]
[1761558243976,1.2931272,1158.6,1157.1,0.63674687]
[1761558244180,1.2931272,1158.6,1157.2,0.53706288]
[1761558244379,1.2931272,1158.6,1157.3,0.53706288]
[1761558244677,1.2931272,1158.6,1157.4,0.53706288]
[1761558244878,1.2931272,1158.6,1157.0,0.63674687]
[1761558245076,1.2931272,1158.6,1157.1,0.53714621]
[1761558245280,1.2931272,1158.5,1157.2,0.53714621]
[1761558245477,1.2931272,1158.5,1157.3,0.53714621]
[1761558245675,1.2931272,1158.5,1157.4,0.53714621]
[1761558245884,1.2931272,1158.5,1157.0,0.63674687]
[1761558246083,1.2931272,1158.5,1157.1,0.53709563]
[1761558246380,1.2931272,1158.5,1157.2,0.53709563]
[1761558246579,1.2931272,1158.5,1157.3,0.53709563]
[1761558246778,1.2931272,1158.6,1157.4,0.53709563]
[1761558246977,1.2931272,1158.6,1157.0,0.63674687]
[1761558247179,1.2931272,1158.6,1157.1,0.53681801]
[1761558247381,1.2931272,1158.6,1157.2,0.53681801]
[1761558247580,1.2931272,1158.6,1157.3,0.53681801]
[1761558247880,1.2931272,1158.6,1157.4,0.53681801]
[1761558248181,1.2931272,1158.6,1157.0,0.63674687]
[1761558248478,1.2931272,1158.6,1157.1,0.53678134]
[1761558248676,1.2931272,1158.6,1157.2,0.53678134]
[1761558248881,1.2931272,1158.6,1157.3,0.53678134]
[1761558249183,1.2931272,1158.6,1157.4,0.53678134]
[1761558249378,1.2931272,1158.6,1157.5,0.53678134]
[1761558249686,1.2931272,1158.6,1157.0,0.63674687]
[1761558249876,1.2931272,1158.6,1157.1,0.53675866]
[1761558250080,1.2931272,1158.6,1157.2,0.53675866]
[1761558250278,1.2931272,1158.5,1157.3,0.53675866]
[1761558250481,1.2931272,1158.5,1157.4,0.53675866]
[1761558250681,1.2931272,1158.5,1157.5,0.53675866]
[1761558250883,1.2931272,1158.5,1157.2,0.63674687]
[1761558251080,1.2931272,1158.5,1157.3,0.53659621]
[1761558251280,1.2931272,1158.5,1157.4,0.53659621]
[1761558251582,1.2931272,1158.5,1157.5,0.53659621]
[1761558251782,1.2931272,1158.5,1157.2,0.63674687]
[1761558251984,1.2931272,1158.5,1157.3,0.53668026]
[1761558252281,1.2931272,1158.5,1157.4,0.53668026]
[1761558252481,1.2931272,1158.5,1157.5,0.53668026]
[1761558252683,1.2931272,1158.5,1157.2,0.64005352]
[1761558252880,1.2931272,1158.5,1157.3,0.53670948]
[1761558253080,1.2931272,1158.5,1157.4,0.53670948]
[1761558253385,1.2931272,1158.5,1157.5,0.53670948]
[1761558253582,1.2931272,1158.5,1157.2,0.64005352]
[1761558253880,1.2931272,1158.5,1157.3,0.53671239]
[1761558254085,1.2931272,1158.5,1157.4,0.53671239]
[1761558254282,1.2931272,1158.5,1157.5,0.53671239]
[1761558254481,1.2931272,1158.5,1157.2,0.64005352]
[1761558254679,1.2931272,1158.5,1157.3,0.53668559]
[1761558254883,1.2931272,1158.7,1157.4,0.53668559]
[1761558255081,1.2931272,1158.8,1157.5,0.53668559]
[1761558255285,1.2931272,1158.8,1157.6,0.53668559]
[1761558255585,1.2931272,1158.8,1157.1,0.64005352]
[1761558255881,1.2931272,1158.8,1157.2,0.53663864]
[1761558256083,1.2931272,1158.9,1157.3,0.53663864]
[1761558256280,1.2931272,1158.9,1157.4,0.53663864]
[1761558256486,1.2931272,1158.9,1157.5,0.53663864]
[1761558256683,1.2931272,1158.9,1157.6,0.53663864]
[1761558256886,1.2931272,1158.9,1157.1,0.64005352]
[1761558257183,1.2931272,1158.9,1157.2,0.53659878]
[1761558257383,1.2931272,1158.9,1157.3,0.53659878]
[1761558257583,1.2931272,1158.9,1157.4,0.53659878]
[1761558257788,1.2931272,1158.9,1157.5,0.53659878]
[1761558258084,1.2931272,1158.9,1157.6,0.53659878]
[1761558258288,1.2931272,1158.9,1157.1,0.64005352]
[1761558258488,1.2931272,1158.9,1157.2,0.5366363]
[1761558258684,1.2931272,1158.9,1157.3,0.5366363]
[1761558258885,1.2931272,1158.9,1157.4,0.5366363]
[1761558259188,1.2931272,1158.9,1157.5,0.5366363]
[1761558259387,1.2931272,1158.9,1157.6,0.5366363]
[1761558259590,1.2931272,1158.9,1157.1,0.64005352]
[1761558259788,1.2931272,1159.0,1157.2,0.53666829]
[1761558259989,1.2931272,1159.2,1157.3,0.53666829]
[1761558260192,1.2931272,1159.2,1157.4,0.53666829]
[1761558260486,1.2931272,1159.2,1157.0,0.64005352]
[1761558260487,1.2931272,1159.2,1157.5,0.53666829]
[1761558260688,1.2931272,1159.2,1157.6,0.53666829]
[1761558260893,1.2931272,1159.1,1157.7,0.53666829]
[1761558261093,1.2931272,1159.2,1157.8,0.53666829]
[1761558261291,1.2931272,1159.2,1157.9,0.53666829]
[1761558261494,1.2931272,1159.2,1157.4,0.64005352]
[1761558261791,1.2931272,1159.2,1157.5,0.536118]
[1761558261994,1.2931272,1159.2,1157.6,0.536118]
[1761558262195,1.2931272,1159.2,1157.7,0.536118]
[1761558262494,1.2931272,1159.2,1157.8,0.536118]
[1761558262697,1.2931272,1159.2,1157.9,0.536118]
[1761558262992,1.2931272,1159.2,1157.4,0.64005352]
[1761558263193,1.2931272,1159.2,1157.5,0.53607881]
[1761558263395,1.2931272,1159.2,1157.6,0.53607881]
[1761558263692,1.2931272,1159.1,1157.7,0.53607881]
[1761558263894,1.2931272,1159.1,1157.8,0.53607881]
[1761558264195,1.2931272,1159.1,1157.3,0.64005352]
[1761558264394,1.2931272,1159.2,1157.4,0.53595285]
[1761558264594,1.2931272,1159.2,1157.5,0.53595285]
[1761558264793,1.2931272,1159.2,1157.6,0.53595285]
[1761558264998,1.2931272,1159.2,1157.7,0.53595285]
[1761558265195,1.2931272,1159.2,1157.8,0.53595285]
[1761558265498,1.2931272,1159.0,1157.4,0.64005352]
[1761558265698,1.2931272,1159.1,1157.5,0.53572823]
[1761558265895,1.2931272,1159.0,1157.6,0.53572823]
[1761558266097,1.2931272,1159.0,1157.0,0.64005352]
[1761558266398,1.2931272,1159.1,1157.1,1.17606637]
[1761558266698,1.2931272,1159.1,1157.2,0.53601285]
[1761558266994,1.2931272,1159.1,1157.3,0.53601285]
[1761558267193,1.2931272,1159.1,1157.4,0.53601285]
[1761558267394,1.2931272,1159.1,1157.5,0.53601285]
[1761558267592,1.2931272,1159.1,1157.6,0.53601285]
[1761558267794,1.2931272,1159.1,1157.1,0.64005352]
[1761558267994,1.2931272,1159.0,1157.2,0.53598491]
[1761558268196,1.2931272,1159.0,1157.3,0.53598491]
[1761558268394,1.2931272,1159.0,1157.4,0.53598491]
[1761558268594,1.2931272,1159.0,1157.5,0.53598491]
[1761558268795,1.2931272,1159.0,1157.6,0.53598491]
[1761558268997,1.2931272,1159.0,1157.1,0.64005352]
[1761558269196,1.2931272,1159.0,1157.2,0.53597925]
[1761558269397,1.2931272,1159.1,1157.3,1.17603277]
[1761558269597,1.2931272,1159.1,1157.4,0.53597925]
[1761558269796,1.2931272,1159.1,1157.5,0.53597925]
[1761558269995,1.2931272,1159.1,1157.6,0.53597925]
[1761558270196,1.2931272,1159.1,1157.7,0.53597925]
[1761558270398,1.2931272,1159.1,1157.3,0.64005352]
[1761558270598,1.2931272,1159.1,1157.4,0.53564255]
[1761558270802,1.2931272,1159.0,1157.5,0.53564255]
[1761558270997,1.2931272,1159.0,1157.6,0.53564255]
[1761558271201,1.2931272,1159.0,1157.7,0.53564255]
[1761558271401,1.2931272,1159.0,1157.3,0.64005352]
[1761558271700,1.2931272,1158.6,1157.4,0.53559964]
[1761558271899,1.2931272,1158.6,1157.1,0.64005352]
[1761558272102,1.2931272,1158.5,1157.2,0.53602317]
[1761558272299,1.2931272,1158.5,1157.3,0.53602317]
[1761558272502,1.2931272,1158.5,1157.4,0.53602317]
[1761558272803,1.2931272,1158.5,1157.0,0.64005352]
[1761558273003,1.2931272,1158.4,1157.1,0.5361072]
[1761558273199,1.2931272,1158.4,1157.2,0.5361072]
[1761558273403,1.2931272,1158.4,1157.3,0.5361072]
[1761558273604,1.2931272,1158.4,1157.4,0.53591249]
[1761558273805,1.2931272,1158.5,1157.1,0.64005352]
[1761558274004,1.2931272,1158.5,1157.2,0.53591269]
[1761558274199,1.2931272,1158.5,1157.3,0.53591269]
[1761558274404,1.2931272,1158.6,1157.4,0.53591269]
[1761558274600,1.2931272,1158.5,1157.0,0.64005352]
[1761558274903,1.2931272,1158.6,1157.1,0.5360056]
[1761558275103,1.2931272,1158.6,1157.2,0.5360056]
[1761558275303,1.2931272,1158.6,1157.3,0.5360056]
[1761558275504,1.2931272,1158.6,1157.4,0.5360056]
[1761558275705,1.2931272,1158.6,1157.0,0.64005352]
[1761558275906,1.2931272,1158.6,1157.1,0.5359499]
[1761558276101,1.2931272,1158.6,1157.2,0.5359499]
[1761558276405,1.2931272,1158.6,1157.3,0.5359499]
[1761558276603,1.2931272,1158.6,1157.0,0.64005352]
[1761558276604,1.2931272,1158.6,1157.4,0.5359499]
[1761558276806,1.2931272,1158.6,1157.0,0.64005352]
[1761558277004,1.2931272,1158.6,1157.1,0.53594952]
[1761558277203,1.2931272,1158.8,1157.2,0.53594952]
[1761558277404,1.2931272,1158.8,1157.3,0.53594952]
[1761558277603,1.2931272,1158.8,1157.4,0.53594952]
[1761558277803,1.2931272,1158.8,1156.9,0.64005352]
[1761558278007,1.2931272,1158.8,1157.0,0.53593401]
[1761558278304,1.2931272,1158.8,1157.1,0.53593401]
[1761558278606,1.2931272,1158.8,1157.2,0.53593401]
[1761558278807,1.2931272,1158.8,1157.3,0.53593401]
[1761558279003,1.2931272,1158.6,1156.8,0.64005352]
[1761558279208,1.2931272,1158.6,1156.9,0.53610277]
[1761558279408,1.2931272,1158.6,1157.0,0.53610277]
[1761558279609,1.2931272,1158.3,1157.1,0.53610277]
[1761558279810,2.1487932,1159.1,1157.2,0.53610277]
[1761558280009,2.1487932,1159.1,1157.3,0.53610277]
[1761558280307,1.2931272,1159.2,1156.6,0.79026427]
[1761558280605,1.2931272,1159.2,1156.7,0.53600878]
[1761558280807,1.2931272,1159.2,1156.8,0.53600878]
[1761558281010,1.2931272,1159.2,1156.9,0.53600878]
[1761558281210,1.2931272,1159.2,1157.0,0.53600878]
[1761558281505,1.2931272,1159.2,1157.1,0.53600878]
[1761558281706,1.2931272,1159.2,1157.2,0.53600878]
[1761558281908,1.2931272,1159.2,1157.3,0.53600878]
[1761558282107,1.2931272,1159.2,1156.6,0.79026427]
[1761558282311,1.2931272,1159.2,1156.7,0.53592589]
[1761558282507,1.2931272,1159.2,1156.8,0.53592589]
[1761558282810,1.2931272,1159.2,1156.9,0.53592589]
[1761558283009,1.2931272,1159.2,1157.0,0.53592589]
[1761558283212,1.2931272,1159.2,1157.1,0.53592589]
[1761558283413,1.2931272,1158.9,1157.2,0.53592589]
[1761558283609,1.2931272,1158.9,1157.3,0.53592589]
[1761558283814,1.2931272,1158.9,1156.8,0.64005352]
[1761558284013,1.2931272,1159.8,1156.9,0.53574582]
[1761558284309,1.2931272,1160.4,1157.2,0.64005352]
[1761558284509,1.2931272,1160.4,1157.3,0.53574582]
[1761558284710,1.2931272,1160.4,1157.4,0.53574582]
[1761558284911,1.2931272,1160.4,1157.5,0.53574582]
[1761558285210,1.2931272,1160.4,1157.6,0.53574582]
[1761558285409,1.2931272,1160.4,1156.7,0.85826132]
[1761558285410,1.2931272,1160.4,1157.7,0.53574582]
[1761558285611,1.2931272,1160.4,1157.8,0.53574582]
[1761558285812,1.2931272,1159.6,1157.9,0.53574582]
[1761558286011,1.2931272,1159.4,1157.3,0.64005352]
[1761558286315,1.2931272,1159.4,1157.4,0.53491111]
[1761558286609,1.2931272,1159.5,1157.5,0.53491111]
[1761558286815,1.2931272,1159.5,1157.6,0.53491111]
[1761558287114,1.2931272,1159.5,1157.7,0.53491111]
[1761558287314,1.2931272,1159.5,1157.8,0.53491111]
[1761558287614,1.2931272,1159.5,1157.2,0.64005352]
[1761558287911,1.2931272,1159.5,1157.3,0.53481652]
[1761558288114,1.2931272,1159.5,1157.4,0.53481652]
[1761558288310,1.2931272,1159.5,1157.5,0.53481652]
[1761558288511,1.2931272,1159.5,1157.6,0.53481652]
[1761558288810,1.2931272,1159.5,1157.7,0.53481652]
[1761558289013,1.2931272,1159.5,1157.8,0.53481652]
[1761558289210,1.2931272,1159.5,1157.3,0.64005352]
[1761558289410,1.2931272,1159.5,1157.4,0.53472205]
[1761558289610,1.2931272,1159.5,1157.5,0.53472205]
[1761558289812,1.2931272,1159.5,1157.6,0.53472205]
[1761558290009,1.2931272,1159.5,1157.7,0.53472205]
[1761558290210,1.2931272,1159.5,1157.8,0.53472205]
[1761558290410,1.2931272,1159.5,1157.3,0.64005352]
[1761558290710,1.2931272,1159.5,1157.4,0.5349968]
[1761558290914,1.2931272,1159.5,1157.5,0.5349968]
[1761558291115,1.2931272,1159.5,1157.6,0.5349968]
[1761558291314,1.2931272,1159.5,1157.7,0.5349968]
[1761558291514,1.2931272,1159.6,1157.8,0.5349968]
[1761558291712,1.2931272,1159.6,1157.2,0.64005352]